bitfinex-derivatives/quotes_SOLF0:USTF0_20260210
["timestamp","ask_amount","ask_price","bid_price","bid_amount"]
[1770724123950,10.7034,84.163,84.111,10.7098]
[1770724124951,10.7047,84.152,84.102,15.56490421]
[1770724127452,94.9,84.153,84.105,4.81727265]
[1770724127654,10.7039,84.159,84.105,4.81727265]
[1770724128951,94.9,84.163,84.114,4.81713745]
[1770724129151,21.3921,84.221,84.114,4.81713745]
[1770724129152,7.94914808,84.19,84.114,4.81713745]
[1770724129343,10.7005,84.186,84.132,4.81713745]
[1770724130849,10.7005,84.186,84.134,4.81713886]
[1770724131757,10.7005,84.186,84.138,10.7064]
[1770724132256,10.7017,84.176,84.121,4.79769646]
[1770724132453,94.88,84.175,84.121,4.79769646]
[1770724133161,7.94914808,84.17,84.121,4.79769646]
[1770724133856,10.703,84.166,84.122,10.7085]
[1770724134055,7.94914808,84.17,84.123,4.80851849]
[1770724134056,94.88,84.169,84.123,4.80851849]
[1770724134458,7.94914808,84.17,84.123,4.80851849]
[1770724135661,94.88,84.172,84.133,4.81656838]
[1770724135961,94.88,84.192,84.133,4.81656838]
[1770724136853,105.5797,84.192,84.145,4.81656838]
[1770724137559,10.6985,84.201,84.151,4.81400106]
[1770724138357,10.6985,84.201,84.154,4.81400106]
[1770724139665,94.88,84.202,84.158,10.7039]
[1770724140061,94.88,84.202,84.159,4.82756524]
[1770724140262,10.6979,84.206,84.161,10.7036]
[1770724140958,10.699,84.197,84.149,10.705]
[1770724141360,7.92808904,84.19,84.118,4.82429802]
[1770724141560,94.86,84.189,84.133,4.82429802]
[1770724142366,10.7002,84.188,84.137,10.7066]
[1770724143061,7.92663689,84.19,84.133,4.82429802]
[1770724143455,7.92663689,84.19,84.098,4.84471623]
[1770724143661,7.92663689,84.17,84.116,4.84471623]
[1770724143859,94.86,84.169,84.116,4.84471623]
[1770724144166,7.92663689,84.17,84.116,4.84471623]
[1770724144363,94.86,84.169,84.116,4.84471623]
[1770724144563,94.86,84.168,84.102,4.84471623]
[1770724145371,7.92663689,84.17,84.102,4.84471623]
[1770724145372,94.86,84.167,84.102,4.84471623]
[1770724145868,10.7033,84.164,84.11,10.7101]
[1770724146276,10.7041,84.158,84.11,10.7101]
[1770724148074,10.7041,84.158,84.104,4.87587586]
[1770724149268,10.704,84.159,84.107,10.7104]
[1770724149572,10.704,84.159,84.108,4.87712849]
[1770724150771,10.704,84.159,84.109,10.7101]
[1770724151170,10.704,84.159,84.109,15.5975653]
[1770724151569,10.704,84.159,84.111,10.7098]
[1770724151969,10.704,84.159,84.111,15.5972653]
[1770724152572,7.92663689,84.17,84.122,4.8874653]
[1770724152777,94.86,84.165,84.122,4.8874653]
[1770724153574,94.86,84.165,84.106,4.86196415]
[1770724154670,105.5631,84.165,84.106,4.86196415]
[1770724155073,94.86,84.164,84.106,4.86196415]
[1770724155276,94.86,84.163,84.106,4.86196415]
[1770724155475,10.7036,84.162,84.117,10.7092]
[1770724158072,94.88,84.165,84.129,4.85543521]
[1770724158282,7.92663689,84.19,84.129,4.85543521]
[1770724158283,94.88,84.182,84.129,4.85543521]
[1770724158871,7.92663689,84.19,84.129,4.85543521]
[1770724159076,94.88,84.189,84.129,4.85543521]
[1770724159876,7.92663689,84.19,84.129,4.85543521]
[1770724160081,94.88,84.192,84.148,15.55518165]
[1770724160283,94.88,84.192,84.149,4.84998165]
[1770724160669,7.92663689,84.21,84.158,15.55388165]
[1770724160875,3.69694,84.2,84.159,4.84998165]
[1770724161575,3.69694,84.19,84.159,4.84998165]
[1770724161985,3.69694,84.2,84.159,4.84998165]
[1770724162382,3.69694,84.2,84.17,4.85198681]
[1770724162977,94.86,84.215,84.17,4.85198681]
[1770724163784,94.86,84.215,84.174,10.7019]
[1770724164085,94.86,84.215,84.17,4.85198681]
[1770724164283,7.92130308,84.22,84.17,4.85198681]
[1770724164284,94.86,84.214,84.17,4.85198681]
[1770724166983,94.86,84.229,84.175,4.84285966]
[1770724168380,10.6961,84.22,84.175,4.84285966]
[1770724168587,10.6961,84.22,84.166,10.7029]
[1770724168792,18.61740308,84.22,84.161,4.84285966]
[1770724168990,7.92130308,84.22,84.144,4.90100075]
[1770724169690,7.92130308,84.22,84.12,7.92130308]
[1770724169691,7.92130308,84.2,84.123,4.90100075]
[1770724171082,94.84,84.199,84.123,4.90100075]
[1770724171479,11.06804604,84.221,84.145,4.92317212]
[1770724171792,7.92130308,84.2,84.127,4.92317212]
[1770724172091,10.6989,84.199,84.142,10.7059]
[1770724172590,7.92130308,84.2,84.142,10.7059]
[1770724172797,7.92130308,84.2,84.152,10.7046]
[1770724173590,10.699,84.198,84.152,10.7046]
[1770724176096,7.92130308,84.2,84.158,10.7038]
[1770724176301,7.92130308,84.2,84.143,4.92317212]
[1770724176996,7.92130308,84.2,84.158,10.7039]
[1770724177398,7.92130308,84.2,84.143,4.92317212]
[1770724177591,11.06804604,84.245,84.16,4.81657606]
[1770724177791,94.84,84.239,84.16,4.81657606]
[1770724178198,2.06653899,84.249,84.16,4.81657606]
[1770724178399,10.6969,84.214,84.17,10.7024]
[1770724178790,7.92130308,84.2,84.141,4.81657606]
[1770724179390,102.76130308,84.2,84.141,4.81657606]
[1770724179790,10.6989,84.199,84.145,4.7595848]
[1770724180098,7.92130308,84.21,84.145,4.7595848]
[1770724180394,94.84,84.209,84.145,4.7595848]
[1770724180696,10.6978,84.207,84.156,10.7042]
[1770724180898,10.6978,84.207,84.145,4.7595848]
[1770724180899,94.84,84.209,84.145,4.7595848]
[1770724181691,10.6994,84.195,84.146,10.7054]
[1770724181889,10.6994,84.195,84.147,4.74979428]
[1770724182092,94.84,84.209,84.147,4.74979428]
[1770724182695,10.699,84.197,84.149,10.705]
[1770724182891,10.699,84.197,84.147,4.74979428]
[1770724183292,10.699,84.197,84.148,10.7052]
[1770724183492,10.7,84.189,84.112,4.73479106]
[1770724183696,7.92130308,84.19,84.13,4.73479106]
[1770724184303,10.703,84.166,84.13,4.73479106]
[1770724184503,10.703,84.166,84.118,10.7089]
[1770724185001,10.7038,84.159,84.116,4.73479106]
[1770724186312,10.7049,84.151,84.103,4.72964516]
[1770724186599,94.84,84.168,84.103,4.72964516]
[1770724186799,7.92130308,84.17,84.103,4.72964516]
[1770724187810,10.7026,84.169,84.122,15.46773005]
[1770724189707,10.7038,84.16,84.111,10.7099]
[1770724190907,3.70158385,84.14,84.112,4.74532943]
[1770724191205,3.70158385,84.13,84.087,4.74532943]
[1770724191409,3.70158385,84.14,84.087,4.74532943]
[1770724191711,3.70158385,84.13,84.1,10.7113]
[1770724193307,3.70158385,84.15,84.107,4.78866525]
[1770724193606,3.70158385,84.14,84.107,4.78866525]
[1770724193910,3.70158385,84.13,84.107,4.78866525]
[1770724194210,3.70158385,84.14,84.107,4.78866525]
[1770724194412,3.70158385,84.15,84.11,4.78866525]
[1770724194713,3.70158385,84.14,84.095,4.78866525]
[1770724195613,3.70158385,84.14,84.097,10.7117]
[1770724196004,3.70158385,84.12,84.095,4.78866525]
[1770724196606,3.70158385,84.13,84.095,4.78866525]
[1770724197609,3.70158385,84.13,84.071,4.76330637]
[1770724197911,3.70158385,84.13,84.09,10.7126]
[1770724198311,3.70158385,84.13,84.09,15.47590637]
[1770724199310,3.70158385,84.1,84.071,10.7149]
[1770724199498,3.70158385,84.1,84.06,4.76267127]
[1770724200407,3.70158385,84.09,84.051,15.48027127]
[1770724201010,10.7103,84.108,84.059,4.82929291]
[1770724201211,22.03704723,84.171,84.016,116.938662]
[1770724201212,3.70158385,84.11,84.061,4.82929291]
[1770724201411,3.70158385,84.12,84.071,4.82929291]
[1770724201612,3.70158385,84.13,84.091,4.82929291]
[1770724201811,3.70158385,84.14,84.091,4.82929291]
[1770724202111,11.01101176,84.181,84.091,4.82929291]
[1770724202112,3.70158385,84.15,84.091,4.82929291]
[1770724202508,3.70158385,84.16,84.118,15.53829291]
[1770724203011,3.70158385,84.16,84.118,4.82929291]
[1770724203713,3.70158385,84.17,84.126,10.708]
[1770724203912,3.70158385,84.17,84.126,15.52286839]
[1770724204319,3.70158385,84.18,84.136,4.81486839]
[1770724204902,3.69912576,84.17,84.094,14.71886772]
[1770724205119,3.69912576,84.15,84.095,4.73370294]
[1770724205508,3.69912576,84.14,84.095,4.73370294]
[1770724205910,3.69912576,84.14,84.106,10.7105]
[1770724206914,3.69912576,84.14,84.098,10.7115]
[1770724207419,3.69912576,84.14,84.098,15.4428858]
[1770724207810,3.69912576,84.16,84.115,4.7313858]
[1770724208010,3.69912576,84.15,84.115,4.7313858]
[1770724208209,3.69912576,84.15,84.091,4.7313858]
[1770724208514,3.69912576,84.15,84.109,10.7101]
[1770724208715,3.69912576,84.16,84.109,15.4414858]
[1770724208911,3.69912576,84.15,84.109,15.4414858]
[1770724209611,3.69912576,84.15,84.109,4.7313858]
[1770724210016,3.69912576,84.15,84.049,22.078662]
[1770724210017,94.88,84.18,84.061,4.73406746]
[1770724210317,3.69912576,84.11,84.061,4.73406746]
[1770724210614,3.69912576,84.11,84.063,10.716]
[1770724210809,3.69912576,84.12,84.071,4.73406746]
[1770724211610,3.69912576,84.12,84.074,4.6208862]
[1770724215813,10.7068,84.136,84.081,4.64583461]
[1770724216820,3.69912576,84.14,84.092,4.64583461]
[1770724217508,3.69912576,84.13,84.082,10.7136]
[1770724217915,3.69912576,84.12,84.082,10.7136]
[1770724218217,3.69912576,84.12,84.078,4.62772505]
[1770724219515,10.7092,84.117,84.078,4.62772505]
[1770724219717,3.69912576,84.12,84.079,4.62002813]
[1770724220122,10.709,84.119,84.08,10.7138]
[1770724220316,10.709,84.119,84.08,15.33380092]
[1770724220515,10.709,84.119,84.081,4.62000092]
[1770724220813,3.69912576,84.14,84.09,4.62000092]
[1770724221016,94.9,84.154,84.09,4.62000092]
[1770724221621,10.7058,84.144,84.099,4.62138673]
[1770724222113,10.7058,84.144,84.102,4.62138673]
[1770724223024,7.93350991,84.18,84.102,4.62138673]
[1770724223223,94.9,84.179,84.102,4.62138673]
[1770724223617,7.93350991,84.18,84.08,7.93350991]
[1770724223618,7.93350991,84.18,84.122,4.62978264]
[1770724223824,94.9,84.19,84.122,4.62978264]
[1770724224021,11.01101176,84.211,84.122,4.62978264]
[1770724224320,102.83350991,84.21,84.122,4.62978264]
[1770724224729,10.6989,84.199,84.137,4.62978264]
[1770724225716,10.6989,84.199,84.14,10.7062]
[1770724226618,10.6978,84.207,84.147,10.7053]
[1770724226820,94.9,84.209,84.14,4.64748582]
[1770724227615,10.6986,84.2,84.141,10.7061]
[1770724228015,10.6986,84.2,84.141,15.34423802]
[1770724228221,105.5776,84.208,84.145,10.7055]
[1770724229224,105.5776,84.208,84.145,15.34193225]
[1770724229422,10.6976,84.208,84.147,10.7053]
[1770724229620,10.6976,84.208,84.147,15.34173225]
[1770724229812,10.6994,84.195,84.147,4.63643225]
[1770724230019,10.6994,84.195,84.113,4.63643225]
[1770724230623,10.7003,84.188,84.13,15.34383225]
[1770724231229,7.93350991,84.19,84.13,4.63643225]
[1770724232720,10.7014,84.179,84.13,4.63643225]
[1770724235124,10.7033,84.163,84.13,4.63643225]
[1770724235327,7.93350991,84.19,84.13,4.63643225]
[1770724236026,10.7024,84.171,84.13,4.63643225]
[1770724236222,94.86,84.194,84.13,4.63643225]
[1770724237327,7.93350991,84.21,84.141,4.66780212]
[1770724237535,94.86,84.209,84.141,4.66780212]
[1770724237724,94.86,84.209,84.152,10.7047]
[1770724238124,94.86,84.209,84.141,4.66780212]
[1770724238326,94.86,84.208,84.141,4.66780212]
[1770724238527,10.6997,84.192,84.146,4.66780212]
[1770724239632,10.6984,84.203,84.149,10.705]
[1770724239831,10.6984,84.203,84.149,15.36798335]
[1770724240942,3.69792559,84.19,84.15,4.692587]
[1770724241231,10.6993,84.195,84.15,4.692587]
[1770724241232,3.69792559,84.18,84.15,4.692587]
[1770724243235,3.69792559,84.18,84.137,4.69227308]
[1770724243633,3.69792559,84.18,84.146,10.7055]
[1770724245146,3.69792559,84.18,84.152,10.7046]
[1770724245440,3.69792559,84.18,84.137,4.69227308]
[1770724245838,3.69792559,84.18,84.137,15.39877308]
[1770724246136,3.69792559,84.18,84.138,4.6895879]
[1770724246332,10.7016,84.177,84.138,4.6895879]
[1770724246534,3.69792559,84.18,84.138,4.6895879]
[1770724247536,3.69792559,84.18,84.121,4.68707422]
[1770724247743,3.69792559,84.17,84.121,4.68707422]
[1770724249840,3.69792559,84.17,84.129,10.7076]
[1770724250545,3.69792559,84.17,84.135,10.7069]
[1770724250848,3.69930551,84.17,84.135,10.7069]
[1770724252036,3.69930551,84.17,84.137,10.7066]
[1770724252545,3.69930551,84.17,84.138,4.72564352]
[1770724252747,3.69930551,84.17,84.139,10.7063]
[1770724254436,3.69930551,84.17,84.138,4.72564352]
[1770724254643,3.69930551,84.18,84.145,4.72339654]
[1770724255439,3.69930551,84.17,84.111,4.74008457]
[1770724256242,3.69930551,84.17,84.127,10.7078]
[1770724256446,3.69930551,84.17,84.128,4.74008457]
[1770724259349,3.69930551,84.17,84.131,4.6865464]
[1770724259845,10.7018,84.175,84.132,10.7073]
[1770724260041,3.69930551,84.17,84.131,4.6865464]
[1770724261247,3.69930551,84.15,84.118,4.69794563]
[1770724264952,3.7008106,84.15,84.118,4.69794563]
[1770724265153,10.7052,84.149,84.118,4.69794563]
[1770724265757,3.7008106,84.15,84.118,4.69794563]
[1770724268059,3.7008106,84.14,84.096,14.71886772]
[1770724268261,166.4375,84.194,84.09,4.64604312]
[1770724268262,3.7008106,84.13,84.09,4.64604312]
[1770724268863,3.7008106,84.12,84.09,4.64604312]
[1770724271961,3.7008106,84.13,84.09,4.64604312]
[1770724272171,3.7008106,84.14,84.093,4.68057516]
[1770724272854,3.7008106,84.15,84.102,4.68057516]
[1770724273057,3.7008106,84.14,84.102,4.68057516]
[1770724273554,3.7008106,84.15,84.102,4.68057516]
[1770724274766,3.7008106,84.14,84.105,4.71096862]
[1770724274962,3.7008106,84.13,84.083,4.70117619]
[1770724275667,3.7008106,84.13,84.087,4.70117619]
[1770724275860,3.7008106,84.12,84.087,4.70117619]
[1770724280870,3.7008106,84.12,84.09,10.7125]
[1770724282168,3.7008106,84.12,84.09,4.67491005]
[1770724284773,3.7008106,84.12,84.091,10.7125]
[1770724285362,10.7079,84.128,84.091,10.7125]
[1770724285763,10.7079,84.128,84.09,4.67491005]
[1770724286570,3.7008106,84.12,84.09,4.67491005]
[1770724290683,10.7091,84.118,84.09,4.67491005]
[1770724291179,10.7091,84.118,84.077,4.65740447]
[1770724291366,10.7091,84.118,84.08,10.7138]
[1770724291570,10.7079,84.128,84.081,4.65740447]
[1770724292375,10.7086,84.122,84.083,4.65740447]
[1770724292676,3.7008106,84.12,84.083,4.65740447]
[1770724293080,10.709,84.119,84.083,4.65740447]
[1770724294576,3.7008106,84.12,84.084,10.7133]
[1770724294886,3.7008106,84.12,84.085,4.68538946]
[1770724295473,14.4096106,84.12,84.085,4.68538946]
[1770724296275,3.7008106,84.12,84.085,4.68538946]
[1770724296481,3.7008106,84.12,84.086,10.7131]
[1770724296983,3.7008106,84.12,84.086,15.40746426]
[1770724300177,3.7008106,84.1,84.065,4.69020737]
[1770724301775,3.7008106,84.1,84.066,10.7157]
[1770724304078,3.7008106,84.1,84.065,4.69020737]
[1770724304978,3.7008106,84.09,84.065,4.69020737]
[1770724305481,3.7008106,84.09,84.025,21.4417]
[1770724305482,3.7008106,84.09,84.054,4.71263715]
[1770724307776,3.7008106,84.1,84.056,4.71485903]
[1770724308482,14.4109106,84.11,84.062,4.71485903]
[1770724309179,14.4109106,84.11,84.066,4.67281479]
[1770724309686,10.7109,84.104,84.066,4.67281479]
[1770724311277,10.7117,84.098,84.066,4.67281479]
[1770724311784,10.7124,84.092,84.066,4.67281479]
[1770724314585,3.45935888,84.089,84.03,3.7008106]
[1770724314785,3.7008106,84.08,84.03,3.7008106]
[1770724315090,3.45935888,84.089,84.02,3.7008106]
[1770724315283,3.7008106,84.08,84.02,3.7008106]
[1770724315483,3.7008106,84.08,84.04,10.7189]
[1770724315783,3.44232879,84.079,84.015,22.078662]
[1770724315989,3.44232879,84.079,84.02,3.7008106]
[1770724316582,3.44232879,84.079,84.031,4.02634642]
[1770724317077,3.44232879,84.079,84.042,4.02634642]
[1770724318385,3.44232879,84.079,84.045,10.7183]
[1770724319087,3.44232879,84.079,84.045,4.02634642]
[1770724319285,3.44232879,84.079,84.021,4.02634642]
[1770724319490,3.7008106,84.07,84.021,4.02634642]
[1770724319690,3.45761192,84.069,84.021,4.02634642]
[1770724320093,3.45761192,84.069,84.034,10.7197]
[1770724321591,3.50670415,84.079,84.041,14.74514642]
[1770724321785,3.7008106,84.07,84.021,4.02634642]
[1770724321994,3.50670415,84.069,84.021,4.02634642]
[1770724322389,3.7008106,84.06,84.026,10.7207]
[1770724323595,3.7008106,84.06,84.021,4.02634642]
[1770724324990,3.59060941,84.059,84.021,4.02634642]
[1770724325197,3.7008106,84.05,84.021,4.02634642]
[1770724326696,3.7008106,84.06,84.021,4.02634642]
[1770724326897,10.7153,84.069,84.021,4.02634642]
[1770724328002,3.70845856,84.06,84.021,4.02634642]
[1770724330401,3.60458959,84.059,84.021,4.02634642]
[1770724330902,94.96,84.08,84.012,4.02634642]
[1770724330903,3.70845856,84.05,84.012,4.02634642]
[1770724331098,7.20338886,84.05,84.012,4.02634642]
[1770724331603,3.4949303,84.049,84.012,4.02634642]
[1770724333097,3.46105098,84.047,84.012,4.02634642]
[1770724333304,3.46105098,84.039,84.001,4.02634642]
[1770724333700,3.46105098,84.039,83.98,3.70845856]
[1770724333903,35.76,84.081,83.934,4.02634642]
[1770724333904,3.70845856,83.99,83.934,4.02634642]
[1770724334102,3.70845856,83.98,83.934,4.02634642]
[1770724334407,3.46105098,84.001,83.951,4.02634642]
[1770724334705,3.46105098,84.016,83.961,4.02634642]
[1770724335206,3.70845856,84.01,83.961,4.02634642]
[1770724335801,7.06345315,84.01,83.961,4.02634642]
[1770724335996,3.70845856,83.99,83.947,4.02634642]
[1770724336198,3.35499459,83.989,83.947,4.02634642]
[1770724336406,3.70845856,83.98,83.921,4.02634642]
[1770724336807,10.7268,83.979,83.922,4.02634642]
[1770724337605,3.70845856,83.98,83.922,4.02634642]
[1770724337798,3.20658945,83.979,83.922,4.02634642]
[1770724338003,3.70845856,83.97,83.922,4.02634642]
[1770724338502,3.70845856,83.98,83.922,4.02634642]
[1770724338702,3.70845856,83.98,83.931,4.02634642]
[1770724339507,3.70845856,83.99,83.931,4.02634642]
[1770724339809,3.70845856,83.98,83.931,4.02634642]
[1770724340804,3.70845856,83.98,83.933,3.9288842]
[1770724342408,3.70845856,83.99,83.94,3.9288842]
[1770724342707,11.06360719,84.045,83.94,3.9288842]
[1770724342708,6.71379155,84.0,83.941,3.9288842]
[1770724343706,6.71379155,84.0,83.951,3.9288842]
[1770724344513,6.71379155,84.0,83.953,3.9288842]
[1770724344812,10.87930185,84.07,83.953,3.9288842]
[1770724344813,3.70845856,84.01,83.953,3.9288842]
[1770724345816,3.70845856,84.01,83.95,3.70845856]
[1770724345817,3.70845856,84.01,83.965,3.9288842]
[1770724346518,3.01161428,84.009,83.965,3.9288842]
[1770724347113,3.01161428,84.009,83.968,3.9288842]
[1770724348329,3.70845856,83.98,83.938,3.9288842]
[1770724348922,3.01506483,83.989,83.938,3.9288842]
[1770724349118,3.70845856,83.98,83.938,3.9288842]
[1770724350722,3.01915775,83.979,83.938,3.9288842]
[1770724351115,3.70845856,83.97,83.938,3.9288842]
[1770724353225,3.70845856,83.99,83.938,3.9288842]
[1770724353427,3.70845856,83.99,83.94,3.70845856]
[1770724353637,3.70845856,83.99,83.941,3.9288842]
[1770724354223,2.90996784,83.992,83.945,3.9288842]
[1770724354629,2.90996784,84.006,83.951,3.9288842]
[1770724354927,10.7235,84.005,83.955,3.9288842]
[1770724357128,2.90996784,84.006,83.957,3.9288842]
[1770724357630,3.70845856,84.01,83.957,3.9288842]
[1770724358833,3.70845856,84.01,83.964,3.9288842]
[1770724359738,3.70845856,84.01,83.966,10.7284]
[1770724360733,3.70845856,84.01,83.971,3.9288842]
[1770724362940,3.70845856,84.01,83.912,35.76]
[1770724362941,3.70845856,83.99,83.948,10.7306]
[1770724363138,6.88211803,83.99,83.948,10.7306]
[1770724363440,6.88211803,83.99,83.944,3.9288842]
[1770724363441,3.70845856,84.0,83.949,3.9288842]
[1770724363635,3.70845856,84.0,83.957,3.9288842]
[1770724364138,3.17365947,84.016,83.967,3.9288842]
[1770724364326,3.70845856,84.01,83.967,3.9288842]
[1770724366734,10.723,84.009,83.967,3.9288842]
[1770724368537,6.91824582,84.0,83.955,3.9288842]
[1770724368738,3.70845856,83.99,83.955,3.9288842]
[1770724369132,3.70845856,83.98,83.931,3.9288842]
[1770724369535,3.70845856,83.98,83.931,2.4288842]
[1770724369933,10.7259,83.987,83.931,2.4288842]
[1770724370735,10.7259,83.987,83.936,10.7323]
[1770724371539,10.7259,83.987,83.94,3.99329206]
[1770724372846,10.7266,83.981,83.94,3.99329206]
[1770724373241,3.71543166,83.98,83.94,3.99329206]
[1770724373943,3.71543166,83.97,83.928,10.7332]
[1770724374241,3.71543166,83.97,83.892,22.078662]
[1770724374242,3.76895179,83.959,83.901,3.99329206]
[1770724374444,3.71543166,83.95,83.901,3.99329206]
[1770724374647,3.71543166,83.94,83.901,3.99329206]
[1770724374940,3.71543166,83.93,83.888,3.99329206]
[1770724375442,10.7335,83.927,83.888,3.99329206]
[1770724375646,3.71543166,83.92,83.888,3.99329206]
[1770724376242,7.48438345,83.93,83.888,3.99329206]
[1770724377552,3.71543166,83.94,83.888,3.99329206]
[1770724377752,3.76895179,83.939,83.888,3.99329206]
[1770724378053,3.71543166,83.93,83.888,3.99329206]
[1770724378754,3.71543166,83.93,83.89,3.99329206]
[1770724379249,3.71543166,83.94,83.901,3.99329206]
[1770724379456,3.71543166,83.93,83.881,3.99329206]
[1770724380556,95.06,83.968,83.846,21.4876]
[1770724380557,3.71543166,83.95,83.899,3.99329206]
[1770724380752,3.76895179,83.929,83.885,3.99329206]
[1770724381653,3.71543166,83.92,83.885,3.99329206]
[1770724381952,3.71543166,83.91,83.872,3.99329206]
[1770724382650,3.71543166,83.9,83.851,3.99329206]
[1770724382852,7.48438345,83.89,83.851,3.99329206]
[1770724383158,3.71543166,83.88,83.851,3.99329206]
[1770724383651,3.71543166,83.88,83.83,3.71543166]
[1770724383855,3.71543166,83.88,83.831,3.99329206]
[1770724384354,3.76895179,83.889,83.831,3.99329206]
[1770724384756,3.76895179,83.889,83.848,10.7435]
[1770724385751,7.48438345,83.88,83.821,3.99329206]
[1770724385952,32.33900185,83.956,83.821,3.99329206]
[1770724385953,3.71543166,83.87,83.821,3.99329206]
[1770724386149,3.76895179,83.854,83.757,21.5104]
[1770724386347,3.166e-05,83.83,83.78,3.71543166]
[1770724386548,3.71543166,83.85,83.791,3.99329206]
[1770724386749,3.71543166,83.85,83.798,3.99329206]
[1770724386954,3.71543166,83.84,83.798,3.99329206]
[1770724387255,3.71543166,83.85,83.8,3.99329206]
[1770724387455,3.71543166,83.84,83.8,3.99329206]
[1770724387856,3.71543166,83.84,83.781,3.99329206]
[1770724388247,3.76895179,83.839,83.781,3.99329206]
[1770724388857,3.76895179,83.839,83.791,10.7508]
[1770724389155,3.76895179,83.839,83.781,3.99329206]
[1770724389457,3.76895179,83.839,83.784,10.7517]
[1770724389655,3.76895179,83.839,83.781,3.99329206]
[1770724390848,3.76895179,83.849,83.781,3.99329206]
[1770724391051,3.76895179,83.849,83.791,10.7508]
[1770724391258,3.76895179,83.849,83.792,3.99329206]
[1770724392452,3.76895179,83.847,83.778,3.99329206]
[1770724393151,3.76895179,83.844,83.778,3.99329206]
[1770724394958,3.76895179,83.84,83.778,3.99329206]
[1770724395657,3.76895179,83.836,83.778,3.99329206]
[1770724399565,3.76895179,83.823,83.762,3.99329206]
[1770724400363,3.87362346,83.809,83.762,3.99329206]
[1770724401272,14.70257702,83.807,83.762,3.99329206]
[1770724401470,3.95377702,83.806,83.762,3.99329206]
[1770724402673,3.95377702,83.793,83.745,10.7566]
[1770724403372,14.70317702,83.803,83.753,3.94929199]
[1770724403570,3.95377702,83.829,83.772,3.94929199]
[1770724403767,10.7482,83.812,83.772,3.94929199]
[1770724404367,3.95377702,83.815,83.753,3.94929199]
[1770724405075,3.95377702,83.815,83.755,3.94929199]
[1770724406269,10.7488,83.807,83.759,3.94929199]
[1770724406768,10.7498,83.8,83.759,3.94929199]
[1770724407175,3.95377702,83.815,83.759,3.94929199]
[1770724407376,10.7491,83.805,83.765,3.94929199]
[1770724407779,3.95377702,83.815,83.765,3.94929199]
[1770724408578,10.7492,83.804,83.765,3.94929199]
[1770724408780,3.95377702,83.815,83.765,3.94929199]
[1770724409478,10.7501,83.797,83.765,3.94929199]
[1770724409667,3.95377702,83.815,83.765,3.94929199]
[1770724410072,3.95377702,83.814,83.765,3.94929199]
[1770724410973,3.95377702,83.789,83.752,2.17587413]
[1770724411384,3.73164722,83.8,83.753,3.94929199]
[1770724411578,3.73164722,83.78,83.752,2.17587413]
[1770724411784,3.95377702,83.782,83.752,2.17587413]
[1770724412982,3.73164722,83.8,83.753,3.94929199]
[1770724413182,3.95377702,83.799,83.753,3.94929199]
[1770724413379,3.73164722,83.79,83.753,3.94929199]
[1770724413570,3.95377702,83.799,83.753,3.94929199]
[1770724417990,95.24,83.826,83.755,3.94929199]
[1770724417991,3.73164722,83.81,83.755,3.94929199]
[1770724418191,7.68542424,83.81,83.755,3.94929199]
[1770724418381,3.95377702,83.809,83.755,3.94929199]
[1770724419089,3.73164722,83.8,83.757,3.94929199]
[1770724419685,3.95377702,83.789,83.752,2.17587413]
[1770724421391,3.95377702,83.789,83.621,36.9968637]
[1770724421392,2.10398654,83.775,83.714,3.94929199]
[1770724421587,5.83563376,83.76,83.714,3.94929199]
[1770724421787,3.73164722,83.77,83.714,3.94929199]
[1770724421983,2.10398654,83.769,83.714,3.94929199]
[1770724423287,2.21052173,83.767,83.721,3.94929199]
[1770724424382,21.498,83.806,83.72,3.73164722]
[1770724424383,5.94216895,83.78,83.725,3.94929199]
[1770724424783,2.21052173,83.779,83.725,3.94929199]
[1770724425288,2.19968853,83.795,83.729,3.94929199]
[1770724425783,10.7513,83.788,83.739,3.94929199]
[1770724425988,2.19968853,83.787,83.739,3.94929199]
[1770724426387,2.19968853,83.809,83.739,3.94929199]
[1770724427090,2.27370077,83.798,83.748,3.94929199]
[1770724427490,2.27370077,83.798,83.711,3.94929199]
[1770724427884,8.61591794,83.812,83.739,3.94929199]
[1770724428187,2.27370077,83.823,83.751,3.94929199]
[1770724428590,10.7473,83.819,83.753,3.94929199]
[1770724428787,95.28,83.86,83.753,3.94929199]
[1770724428788,2.27370077,83.837,83.753,3.94929199]
[1770724429693,10.746,83.829,83.767,10.7539]
[1770724429897,10.746,83.829,83.768,3.84856648]
[1770724430384,13.1606173,83.829,83.768,3.84856648]
[1770724430891,2.4146173,83.825,83.77,3.84856648]
[1770724431292,2.86426332,83.823,83.77,3.84856648]
[1770724431496,10.7465,83.826,83.77,3.84856648]
[1770724431497,2.86426332,83.82,83.77,3.84856648]